[Event "Torneo Nuevo Centro. Jornada 10"]
[Site "Chess.com"]
[Date "2020.08.21"]
[Round "2"]
[White "Tormos Beltran, Maite"]
[Black "Rausell Taberner, Diego"]
[Result "1-0"]
[WhiteElo "1433"]
[BlackElo "608"]
[TimeControl "180+2"]
[EndTime "10:48:14 PDT"]
[Termination "Victoria de TORBEL79 por tiempo"]

1. d4 {[%clk 0:02:54.7]} 1... d5 {[%clk 0:02:58.2]} 2. c4 {[%clk 0:02:48.8]}
2... dxc4 {[%clk 0:02:58.3]} 3. Qa4+ {[%clk 0:02:48.5]} 3... Nc6 {[%clk
0:02:55.9]} 4. Qxc4 {[%clk 0:02:49.9]} 4... Nf6 {[%clk 0:02:52.5]} 5. Nf3 {[%clk
0:02:48.8]} 5... Bf5 {[%clk 0:02:39.2]} 6. Nc3 {[%clk 0:02:47.1]} 6... e6 {[%clk
0:02:27.9]} 7. e3 {[%clk 0:02:46.8]} 7... Bb4 {[%clk 0:02:26.8]} 8. a3 {[%clk
0:02:41]} 8... Bxc3+ {[%clk 0:02:25.9]} 9. Qxc3 {[%clk 0:02:41.5]} 9... Nd5
{[%clk 0:02:22.6]} 10. Qd2 {[%clk 0:02:27.5]} 10... e5 {[%clk 0:02:04.8]} 11.
Nxe5 {[%clk 0:02:17.6]} 11... Nxe5 {[%clk 0:02:02.5]} 12. dxe5 {[%clk
0:02:18.6]} 12... O-O {[%clk 0:01:55.2]} 13. Bc4 {[%clk 0:02:16.7]} 13... Be4
{[%clk 0:01:50.3]} 14. O-O {[%clk 0:02:14.3]} 14... Ne7 {[%clk 0:01:41.8]} 15.
Qxd8 {[%clk 0:02:10]} 15... Raxd8 {[%clk 0:01:41.2]} 16. b4 {[%clk 0:02:10.4]}
16... Ng6 {[%clk 0:01:28.6]} 17. e6 {[%clk 0:02:10.4]} 17... fxe6 {[%clk
0:01:22.9]} 18. Bxe6+ {[%clk 0:02:10.5]} 18... Kh8 {[%clk 0:01:23]} 19. Bb2
{[%clk 0:02:10.7]} 19... Rfe8 {[%clk 0:01:16.8]} 20. Bb3 {[%clk 0:02:07.2]}
20... Rd3 {[%clk 0:01:11.9]} 21. Ba4 {[%clk 0:01:59.6]} 21... Re7 {[%clk
0:01:09.1]} 22. Bc2 {[%clk 0:01:58.8]} 22... Rd2 {[%clk 0:01:05.1]} 23. Bxe4
{[%clk 0:01:58.7]} 23... Rxe4 {[%clk 0:01:05]} 24. Bc3 {[%clk 0:01:51.6]} 24...
Rc2 {[%clk 0:00:54.5]} 25. Bd4 {[%clk 0:01:47]} 25... Rc6 {[%clk 0:00:45.7]} 26.
Rfd1 {[%clk 0:01:46.9]} 26... Rce6 {[%clk 0:00:43.7]} 27. Bxa7 {[%clk 0:01:42]}
27... Re8 {[%clk 0:00:41.9]} 28. Bd4 {[%clk 0:01:41.1]} 28... Ne7 {[%clk
0:00:35.5]} 29. Rac1 {[%clk 0:01:40.8]} 29... Nd5 {[%clk 0:00:20.7]} 30. Bxg7+
{[%clk 0:01:37.7]} 30... Kxg7 {[%clk 0:00:20.5]} 31. Rxd5 {[%clk 0:01:38.2]}
31... Rd8 {[%clk 0:00:20.3]} 32. Rxd8 {[%clk 0:01:37.8]} 32... Kf7 {[%clk
0:00:19.9]} 33. Rxc7+ {[%clk 0:01:37.2]} 33... Kg6 {[%clk 0:00:20.6]} 34. h3
{[%clk 0:01:37.7]} 34... Kf6 {[%clk 0:00:20.8]} 35. Rd6+ {[%clk 0:01:38.3]}
35... Kf5 {[%clk 0:00:21.1]} 36. Rc5+ {[%clk 0:01:38.5]} 36... Re5 {[%clk
0:00:20.2]} 37. Rxe5+ {[%clk 0:01:39]} 37... Kxe5 {[%clk 0:00:10.7]} 38. Rd7
{[%clk 0:01:38.9]} 38... Ke4 {[%clk 0:00:08.4]} 39. Rxb7 {[%clk 0:01:38.9]}
39... Kd3 {[%clk 0:00:08.7]} 40. Rxh7 {[%clk 0:01:38.6]} 40... Ke2 {[%clk
0:00:08.8]} 41. b5 {[%clk 0:01:38.9]} 41... Ke1 {[%clk 0:00:09]} 42. b6 {[%clk
0:01:40]} 42... Kd1 {[%clk 0:00:09.3]} 43. b7 {[%clk 0:01:41.2]} 43... Kc1
{[%clk 0:00:08.4]} 44. b8=R {[%clk 0:01:41.4]} 44... Kc2 {[%clk 0:00:08.4]} 45.
Rd8 {[%clk 0:01:42]} 1

[Event "Torneo Nuevo Centro. Jornada 10"]
[Site "Chess.com"]
[Date "2020.08.21"]
[Round "2"]
[White "Leal Uribe, Jhonny Alberto"]
[Black "Gimenez Saiz, Jose Raul"]
[Result "1-0"]
[WhiteElo "2452"]
[BlackElo "1899"]
[TimeControl "180+2"]
[EndTime "10:48:15 PDT"]
[Termination "Victoria de jhonnyuribe por abandono"]

1. d4 {[%clk 0:03:01.9]} 1... Nf6 {[%clk 0:02:59.6]} 2. Nf3 {[%clk 0:03:03.8]}
2... c5 {[%clk 0:03:00]} 3. e3 {[%clk 0:03:05.7]} 3... b5 {[%clk 0:02:54.4]} 4.
Bd3 {[%clk 0:03:07.6]} 4... c4 {[%clk 0:02:54.7]} 5. Be2 {[%clk 0:03:06.4]} 5...
Bb7 {[%clk 0:02:54.4]} 6. c3 {[%clk 0:03:06.3]} 6... Ne4 {[%clk 0:02:51.2]} 7.
Nbd2 {[%clk 0:03:05.8]} 7... f5 {[%clk 0:02:51.7]} 8. Nxe4 {[%clk 0:03:00.4]}
8... Bxe4 {[%clk 0:02:50.9]} 9. O-O {[%clk 0:02:58.9]} 9... d6 {[%clk
0:02:34.4]} 10. Ng5 {[%clk 0:02:51.9]} 10... Qd7 {[%clk 0:02:15.4]} 11. a4
{[%clk 0:02:47.5]} 11... d5 {[%clk 0:01:59.6]} 12. f3 {[%clk 0:02:39.2]} 12...
Bd3 {[%clk 0:02:00.1]} 13. Bxd3 {[%clk 0:02:40.6]} 13... cxd3 {[%clk 0:02:02]}
14. Qxd3 {[%clk 0:02:41.9]} 14... h6 {[%clk 0:02:02.4]} 15. Nh3 {[%clk
0:02:40.6]} 15... g5 {[%clk 0:02:02.1]} 16. Qxb5 {[%clk 0:02:39.4]} 16... Nc6
{[%clk 0:02:01.4]} 17. Qd3 {[%clk 0:02:37.1]} 17... Bg7 {[%clk 0:02:00.5]} 18.
e4 {[%clk 0:02:35.2]} 18... dxe4 {[%clk 0:01:57.4]} 19. fxe4 {[%clk 0:02:35.9]}
19... f4 {[%clk 0:01:49.5]} 20. b4 {[%clk 0:02:20.6]} 20... O-O {[%clk
0:01:32.2]} 21. b5 {[%clk 0:02:07.2]} 21... Ne5 {[%clk 0:01:32.7]} 22. Qe2
{[%clk 0:01:59.2]} 22... Ng6 {[%clk 0:01:21]} 23. e5 {[%clk 0:01:48.8]} 23...
Rac8 {[%clk 0:01:12.5]} 24. Bd2 {[%clk 0:01:46]} 24... Qf5 {[%clk 0:01:02.4]}
25. Nf2 {[%clk 0:01:24.6]} 25... Nh4 {[%clk 0:00:51.7]} 26. Qe4 {[%clk
0:01:18.5]} 26... Qe6 {[%clk 0:00:43.9]} 27. Nd3 {[%clk 0:01:16.5]} 27... f3
{[%clk 0:00:30.7]} 28. d5 {[%clk 0:00:43.8]} 28... f2+ {[%clk 0:00:11.2]} 29.
Rxf2 {[%clk 0:00:40.6]} 29... Qb6 {[%clk 0:00:08.2]} 30. Be3 {[%clk 0:00:40.7]}
30... Qa5 {[%clk 0:00:08.4]} 31. Bd4 {[%clk 0:00:38.2]} 31... Rxf2 {[%clk
0:00:07.6]} 32. Nxf2 {[%clk 0:00:39.7]} 32... Rc4 {[%clk 0:00:08.1]} 33. g3
{[%clk 0:00:38.2]} 33... Ng6 {[%clk 0:00:08.7]} 34. Qxg6 {[%clk 0:00:38.7]} 1

[Event "Torneo Nuevo Centro. Jornada 10"]
[Site "Chess.com"]
[Date "2020.08.21"]
[Round "2"]
[White "Valmaña Cantó, Jaime"]
[Black "Salvador Buiza, Victor"]
[Result "1-0"]
[WhiteElo "2410"]
[BlackElo "1881"]
[TimeControl "180+2"]
[EndTime "10:48:27 PDT"]
[Termination "Victoria de barberbirborbur por jaque mate"]

1. e4 {[%clk 0:03:01.9]} 1... e5 {[%clk 0:02:59.3]} 2. Nf3 {[%clk 0:02:57.9]}
2... Nc6 {[%clk 0:02:58.4]} 3. Bb5 {[%clk 0:02:55.2]} 3... Bc5 {[%clk
0:02:53.1]} 4. O-O {[%clk 0:02:53.5]} 4... d6 {[%clk 0:02:52]} 5. c3 {[%clk
0:02:53.3]} 5... Bg4 {[%clk 0:02:52.3]} 6. h3 {[%clk 0:02:54.7]} 6... Bxf3
{[%clk 0:02:48.8]} 7. Qxf3 {[%clk 0:02:54.8]} 7... Ne7 {[%clk 0:02:49.4]} 8. d3
{[%clk 0:02:48.3]} 8... O-O {[%clk 0:02:48.5]} 9. Be3 {[%clk 0:02:45.7]} 9...
Bb6 {[%clk 0:02:42.5]} 10. Nd2 {[%clk 0:02:38.1]} 10... f5 {[%clk 0:02:41.1]}
11. exf5 {[%clk 0:02:38.1]} 11... Nxf5 {[%clk 0:02:23.4]} 12. Bxb6 {[%clk
0:02:36.8]} 12... axb6 {[%clk 0:02:13.9]} 13. Bxc6 {[%clk 0:02:22.4]} 13... bxc6
{[%clk 0:02:14.6]} 14. Qxc6 {[%clk 0:02:23]} 14... Rc8 {[%clk 0:02:04.6]} 15. a4
{[%clk 0:02:09.4]} 15... Qg5 {[%clk 0:02:03]} 16. Ne4 {[%clk 0:02:05.1]} 16...
Qg6 {[%clk 0:02:00.7]} 17. a5 {[%clk 0:01:57.9]} 17... Nh4 {[%clk 0:01:47.4]}
18. Qd5+ {[%clk 0:01:56.9]} 18... Kh8 {[%clk 0:01:44.8]} 19. Ng3 {[%clk
0:01:58.3]} 19... bxa5 {[%clk 0:01:37.3]} 20. Rxa5 {[%clk 0:01:55.9]} 20... h5
{[%clk 0:01:29.5]} 21. Qe4 {[%clk 0:01:55.5]} 21... Qg5 {[%clk 0:01:13.9]} 22.
d4 {[%clk 0:01:15.7]} 22... Rce8 {[%clk 0:00:21.9]} 23. dxe5 {[%clk 0:01:14.1]}
23... dxe5 {[%clk 0:00:21.7]} 24. Re1 {[%clk 0:01:08.6]} 24... Rf4 {[%clk
0:00:17.7]} 25. Qe2 {[%clk 0:00:58.4]} 25... Qf6 {[%clk 0:00:07.7]} 26. Nxh5
{[%clk 0:00:57.9]} 26... Qg5 {[%clk 0:00:07.8]} 27. Nxf4 {[%clk 0:00:57.1]}
27... Rf8 {[%clk 0:00:04.2]} 28. Qh5+ {[%clk 0:00:55.2]} 28... Qxh5 {[%clk
0:00:03]} 29. Nxh5 {[%clk 0:00:56.7]} 29... Rf5 {[%clk 0:00:03.2]} 30. Ng3
{[%clk 0:00:57.7]} 30... Rg5 {[%clk 0:00:03.9]} 31. Raxe5 {[%clk 0:00:59.2]}
31... Rxe5 {[%clk 0:00:04.8]} 32. Rxe5 {[%clk 0:01:00.8]} 32... c5 {[%clk
0:00:06.1]} 33. Rh5+ {[%clk 0:01:01.8]} 33... Kg8 {[%clk 0:00:07]} 34. Rxh4
{[%clk 0:01:03.3]} 34... Kf7 {[%clk 0:00:08.9]} 35. Rc4 {[%clk 0:01:04.7]} 35...
Kf6 {[%clk 0:00:10.8]} 36. Rxc5 {[%clk 0:01:06]} 36... Ke6 {[%clk 0:00:11.4]}
37. b4 {[%clk 0:01:06.7]} 37... g5 {[%clk 0:00:13.3]} 38. f3 {[%clk 0:01:06.9]}
38... Kd6 {[%clk 0:00:15.2]} 39. Kf2 {[%clk 0:01:06.1]} 39... g4 {[%clk
0:00:16.8]} 40. Ne4+ {[%clk 0:01:06.7]} 40... Ke6 {[%clk 0:00:15.4]} 41. hxg4
{[%clk 0:01:08.2]} 41... Kd7 {[%clk 0:00:16.2]} 42. g5 {[%clk 0:01:08.2]} 42...
Ke6 {[%clk 0:00:18.1]} 43. Kg3 {[%clk 0:01:07.6]} 43... Kd7 {[%clk 0:00:20]} 44.
Kf4 {[%clk 0:01:08.2]} 44... Ke6 {[%clk 0:00:21.9]} 45. Rc6+ {[%clk 0:01:08.1]}
45... Kf7 {[%clk 0:00:23.7]} 46. g6+ {[%clk 0:01:06.3]} 46... Kg8 {[%clk
0:00:25.6]} 47. Kg5 {[%clk 0:01:05.8]} 47... Kf8 {[%clk 0:00:27.5]} 48. Rc7
{[%clk 0:01:06]} 48... Kg8 {[%clk 0:00:27.6]} 49. b5 {[%clk 0:01:07.1]} 49...
Kf8 {[%clk 0:00:29.5]} 50. b6 {[%clk 0:01:07.9]} 50... Kg8 {[%clk 0:00:31.4]}
51. b7 {[%clk 0:01:08.6]} 51... Kf8 {[%clk 0:00:33.3]} 52. b8=Q# {[%clk
0:01:09]} 1

[Event "Torneo Nuevo Centro. Jornada 10"]
[Site "Chess.com"]
[Date "2020.08.21"]
[Round "2"]
[White "Kovacevic, Slobodan"]
[Black "Yuste Valenzuela, Alejandro"]
[Result "0-1"]
[WhiteElo "2308"]
[BlackElo "1881"]
[TimeControl "180+2"]
[EndTime "10:48:35 PDT"]
[Termination "Victoria de alejandrito290 por tiempo"]

1. d4 {[%clk 0:03:01.9]} 1... Nf6 {[%clk 0:02:58]} 2. Nf3 {[%clk 0:03:01.1]}
2... d6 {[%clk 0:02:59]} 3. Bg5 {[%clk 0:03:00.4]} 3... h6 {[%clk 0:02:59.1]} 4.
Bh4 {[%clk 0:03:00.1]} 4... g5 {[%clk 0:03:00]} 5. Bg3 {[%clk 0:03:00]} 5... Nh5
{[%clk 0:03:01.6]} 6. e4 {[%clk 0:02:59.5]} 6... e6 {[%clk 0:03:02]} 7. c3
{[%clk 0:02:58.8]} 7... Bg7 {[%clk 0:02:58]} 8. Na3 {[%clk 0:02:57.9]} 8... Nc6
{[%clk 0:02:39.8]} 9. Bd3 {[%clk 0:02:51.7]} 9... Bd7 {[%clk 0:02:36.6]} 10. Qe2
{[%clk 0:02:46.5]} 10... Qe7 {[%clk 0:02:33.2]} 11. Nc4 {[%clk 0:02:43.2]} 11...
Nxg3 {[%clk 0:02:33.3]} 12. hxg3 {[%clk 0:02:42.2]} 12... O-O-O {[%clk
0:02:31.2]} 13. Ne3 {[%clk 0:02:39.4]} 13... Kb8 {[%clk 0:02:26.8]} 14. O-O-O
{[%clk 0:02:38.1]} 14... Rhf8 {[%clk 0:01:54.1]} 15. g4 {[%clk 0:02:36.3]} 15...
f5 {[%clk 0:01:37.7]} 16. gxf5 {[%clk 0:02:22.9]} 16... exf5 {[%clk 0:01:38.3]}
17. exf5 {[%clk 0:02:19.4]} 17... Bxf5 {[%clk 0:01:29.8]} 18. Bxf5 {[%clk
0:02:04.4]} 18... Rxf5 {[%clk 0:01:24.3]} 19. Qc2 {[%clk 0:02:02.3]} 19... Ra5
{[%clk 0:01:20.2]} 20. Kb1 {[%clk 0:01:58.6]} 20... Qf7 {[%clk 0:01:07.4]} 21.
a3 {[%clk 0:01:55.9]} 21... Ra6 {[%clk 0:01:04.6]} 22. Ng4 {[%clk 0:01:47.6]}
22... Rh8 {[%clk 0:00:55.4]} 23. Rde1 {[%clk 0:01:40.9]} 23... Na5 {[%clk
0:00:48.2]} 24. Qe4 {[%clk 0:01:08.1]} 24... Rb6 {[%clk 0:00:21.9]} 25. Nd2
{[%clk 0:00:53.8]} 25... a6 {[%clk 0:00:21.4]} 26. Qe6 {[%clk 0:00:42.1]} 26...
Qf8 {[%clk 0:00:19.4]} 27. f3 {[%clk 0:00:35.5]} 27... Qf4 {[%clk 0:00:19.6]}
28. Qe3 {[%clk 0:00:31.2]} 28... Qf5+ {[%clk 0:00:20.4]} 29. Qe4 {[%clk
0:00:15.5]} 29... Qb5 {[%clk 0:00:21.4]} 30. b4 {[%clk 0:00:13.4]} 30... Nc4
{[%clk 0:00:19.9]} 31. Nxc4 {[%clk 0:00:12]} 31... Qxc4 {[%clk 0:00:21.8]} 32.
Kb2 {[%clk 0:00:08.6]} 32... a5 {[%clk 0:00:21.4]} 33. Ne3 {[%clk 0:00:07.2]}
33... Qb5 {[%clk 0:00:20.7]} 34. Nd5 {[%clk 0:00:05.1]} 34... Ra6 {[%clk
0:00:17.2]} 0

[Event "Torneo Nuevo Centro. Jornada 10"]
[Site "Chess.com"]
[Date "2020.08.21"]
[Round "2"]
[White "Nadal Fajardo, Ricard"]
[Black "Roca Cruz, Rafael"]
[Result "1-0"]
[WhiteElo "2224"]
[BlackElo "1849"]
[TimeControl "180+2"]
[EndTime "10:48:42 PDT"]
[Termination "Victoria de gomokuniano por tiempo"]

1. Nf3 {[%clk 0:03:01.9]} 1... b5 {[%clk 0:03:00.7]} 2. d4 {[%clk 0:02:57.4]}
2... Bb7 {[%clk 0:03:01.5]} 3. g3 {[%clk 0:02:46.8]} 3... e6 {[%clk 0:03:02.1]}
4. Bg2 {[%clk 0:02:47.5]} 4... Be7 {[%clk 0:03:03.2]} 5. O-O {[%clk 0:02:48.5]}
5... Nf6 {[%clk 0:03:04.3]} 6. b3 {[%clk 0:02:48.8]} 6... O-O {[%clk 0:03:04.8]}
7. Bb2 {[%clk 0:02:49.9]} 7... d6 {[%clk 0:03:06.1]} 8. c4 {[%clk 0:02:47.7]}
8... bxc4 {[%clk 0:02:58.2]} 9. bxc4 {[%clk 0:02:49.4]} 9... c5 {[%clk
0:02:55.5]} 10. e3 {[%clk 0:02:49]} 10... Nbd7 {[%clk 0:02:54]} 11. Nbd2 {[%clk
0:02:45.1]} 11... Rb8 {[%clk 0:02:54.8]} 12. Rb1 {[%clk 0:02:39.1]} 12... Ne4
{[%clk 0:01:58.1]} 13. Qc2 {[%clk 0:02:35.6]} 13... Ndf6 {[%clk 0:01:57]} 14.
Ba1 {[%clk 0:02:20]} 14... Nxd2 {[%clk 0:01:47.2]} 15. Nxd2 {[%clk 0:02:14.2]}
15... Bxg2 {[%clk 0:01:47.4]} 16. Kxg2 {[%clk 0:02:16.1]} 16... Qc7 {[%clk
0:01:45.5]} 17. Rb3 {[%clk 0:02:01.3]} 17... Rb6 {[%clk 0:01:38]} 18. Rfb1
{[%clk 0:01:58.6]} 18... Rfb8 {[%clk 0:01:38.4]} 19. f3 {[%clk 0:01:42.4]} 19...
cxd4 {[%clk 0:01:03.2]} 20. exd4 {[%clk 0:01:39]} 20... Nd5 {[%clk 0:01:03.2]}
21. Qe4 {[%clk 0:01:12.9]} 21... Nf6 {[%clk 0:00:43.6]} 22. Qd3 {[%clk
0:01:09.4]} 22... Qc6 {[%clk 0:00:40.5]} 23. Bc3 {[%clk 0:00:45.7]} 23... Rxb3
{[%clk 0:00:21]} 24. axb3 {[%clk 0:00:47.3]} 24... Rb6 {[%clk 0:00:15]} 25. Ra1
{[%clk 0:00:40.7]} 25... Ra6 {[%clk 0:00:15.5]} 26. Rb1 {[%clk 0:00:33.4]} 26...
Ra2 {[%clk 0:00:13.8]} 27. Rb2 {[%clk 0:00:33.6]} 27... Rxb2 {[%clk 0:00:12.1]}
28. Bxb2 {[%clk 0:00:35.4]} 28... h6 {[%clk 0:00:13.1]} 29. Bc3 {[%clk
0:00:19.6]} 29... Qa6 {[%clk 0:00:13]} 30. Qb1 {[%clk 0:00:18.3]} 30... Nd7
{[%clk 0:00:06.6]} 31. Ne4 {[%clk 0:00:16.9]} 31... Qa3 {[%clk 0:00:02.8]} 32.
Nd2 {[%clk 0:00:16]} 1

[Event "Torneo Nuevo Centro. Jornada 10"]
[Site "Chess.com"]
[Date "2020.08.21"]
[Round "2"]
[White "Castellano López, Javier"]
[Black "Fenollar Jorda, Manolo"]
[Result "0-1"]
[WhiteElo "1901"]
[BlackElo "2473"]
[TimeControl "180+2"]
[EndTime "10:48:51 PDT"]
[Termination "Victoria de Cucudrulu por jaque mate"]

1. d4 {[%clk 0:03:01.9]} 1... d5 {[%clk 0:03:00.6]} 2. c4 {[%clk 0:03:02.5]}
2... c6 {[%clk 0:03:01.3]} 3. Nc3 {[%clk 0:03:00.1]} 3... Nf6 {[%clk 0:03:02.4]}
4. Nf3 {[%clk 0:03:00.9]} 4... e6 {[%clk 0:03:01.6]} 5. Bg5 {[%clk 0:03:01.9]}
5... dxc4 {[%clk 0:03:01.5]} 6. a4 {[%clk 0:03:01.4]} 6... Bb4 {[%clk
0:03:01.3]} 7. e3 {[%clk 0:02:51.9]} 7... b5 {[%clk 0:02:51]} 8. Nd2 {[%clk
0:02:47.4]} 8... Nbd7 {[%clk 0:02:43.6]} 9. axb5 {[%clk 0:02:46.4]} 9... Bxc3
{[%clk 0:02:43.2]} 10. bxc3 {[%clk 0:02:44.8]} 10... cxb5 {[%clk 0:02:43.8]} 11.
Qf3 {[%clk 0:02:39.9]} 11... Rb8 {[%clk 0:02:44.1]} 12. Rxa7 {[%clk 0:02:18.2]}
12... Qb6 {[%clk 0:02:44.3]} 13. Ra1 {[%clk 0:02:07.9]} 13... O-O {[%clk
0:02:44.2]} 14. Be2 {[%clk 0:02:07.5]} 14... Bb7 {[%clk 0:02:10.4]} 15. Qg3
{[%clk 0:02:00.7]} 15... Kh8 {[%clk 0:02:10.2]} 16. O-O {[%clk 0:01:59.8]} 16...
Ra8 {[%clk 0:02:08.8]} 17. Bf3 {[%clk 0:01:53]} 17... Nd5 {[%clk 0:01:48.8]} 18.
Bxd5 {[%clk 0:01:32]} 18... Bxd5 {[%clk 0:01:49]} 19. Be7 {[%clk 0:01:31.4]}
19... Rfe8 {[%clk 0:01:41.1]} 20. Bb4 {[%clk 0:01:31.5]} 20... Nf6 {[%clk
0:01:28.1]} 21. Qe5 {[%clk 0:01:11]} 21... Qb7 {[%clk 0:01:18.8]} 22. f3 {[%clk
0:01:05.5]} 22... Nd7 {[%clk 0:01:18.6]} 23. Qg3 {[%clk 0:01:02.9]} 23... f5
{[%clk 0:01:12.8]} 24. h4 {[%clk 0:00:56.8]} 24... Nf6 {[%clk 0:01:13.2]} 25.
Rfb1 {[%clk 0:00:30]} 25... h6 {[%clk 0:01:00.5]} 26. Qe1 {[%clk 0:00:28.4]}
26... Kh7 {[%clk 0:00:46.3]} 27. Rxa8 {[%clk 0:00:27.9]} 27... Rxa8 {[%clk
0:00:46.8]} 28. Ra1 {[%clk 0:00:28.9]} 28... Rxa1 {[%clk 0:00:40.7]} 29. Qxa1
{[%clk 0:00:30.8]} 29... Qc7 {[%clk 0:00:42.1]} 30. Qe1 {[%clk 0:00:20.3]} 30...
Qa7 {[%clk 0:00:34.9]} 31. e4 {[%clk 0:00:19.8]} 31... fxe4 {[%clk 0:00:29.9]}
32. fxe4 {[%clk 0:00:21.7]} 32... Bc6 {[%clk 0:00:31]} 33. e5 {[%clk 0:00:20.1]}
33... Nd5 {[%clk 0:00:27.2]} 34. Qe4+ {[%clk 0:00:20.4]} 34... Kh8 {[%clk
0:00:27.3]} 35. Qb1 {[%clk 0:00:16.3]} 35... Qf7 {[%clk 0:00:21]} 36. Nf3 {[%clk
0:00:10]} 36... Qf4 {[%clk 0:00:21.5]} 37. Qa1 {[%clk 0:00:09.7]} 37... Ne3
{[%clk 0:00:20.2]} 38. Qe1 {[%clk 0:00:04.1]} 38... Nxg2 {[%clk 0:00:17.5]} 39.
Kxg2 {[%clk 0:00:02.9]} 39... Qxf3+ {[%clk 0:00:18.2]} 40. Kh2 {[%clk
0:00:03.5]} 40... Qg2# {[%clk 0:00:20.1]} 0

[Event "Torneo Nuevo Centro. Jornada 10"]
[Site "Chess.com"]
[Date "2020.08.21"]
[Round "2"]
[White "Aymerich Rosell, Pablo"]
[Black "Iravedra Ainkov, Francisco"]
[Result "1-0"]
[WhiteElo "1973"]
[BlackElo "1809"]
[TimeControl "180+2"]
[EndTime "10:48:53 PDT"]
[Termination "Victoria de jasikevic por abandono"]

1. d4 {[%clk 0:03:01.9]} 1... d6 {[%clk 0:02:51.5]} 2. e4 {[%clk 0:03:00.2]}
2... Nf6 {[%clk 0:02:46.8]} 3. Nc3 {[%clk 0:03:00.2]} 3... e5 {[%clk 0:02:46.6]}
4. Nf3 {[%clk 0:02:59.3]} 4... Nbd7 {[%clk 0:02:44.1]} 5. Bc4 {[%clk 0:02:59.7]}
5... Be7 {[%clk 0:02:38.2]} 6. O-O {[%clk 0:02:59.3]} 6... O-O {[%clk 0:02:27]}
7. a4 {[%clk 0:02:55.6]} 7... c6 {[%clk 0:02:22.9]} 8. h3 {[%clk 0:02:46.7]}
8... b6 {[%clk 0:02:07.3]} 9. Qe2 {[%clk 0:02:44.9]} 9... Bb7 {[%clk 0:02:01.6]}
10. Rd1 {[%clk 0:02:41.5]} 10... Qc7 {[%clk 0:02:00]} 11. Nh4 {[%clk 0:02:39.6]}
11... Rfe8 {[%clk 0:01:56.4]} 12. Nf5 {[%clk 0:02:38.6]} 12... Bf8 {[%clk
0:01:57.1]} 13. Ba2 {[%clk 0:02:34.3]} 13... g6 {[%clk 0:01:57.6]} 14. Nh6+
{[%clk 0:02:32]} 14... Bxh6 {[%clk 0:01:50.2]} 15. Bxh6 {[%clk 0:02:33.9]} 15...
c5 {[%clk 0:01:42.9]} 16. dxc5 {[%clk 0:02:04]} 16... Nxc5 {[%clk 0:01:35]} 17.
Nd5 {[%clk 0:01:57.4]} 17... Nxd5 {[%clk 0:01:30.1]} 18. Bxd5 {[%clk 0:01:57.9]}
18... Bxd5 {[%clk 0:01:29.3]} 19. Rxd5 {[%clk 0:01:57.1]} 19... f5 {[%clk
0:01:05.5]} 20. exf5 {[%clk 0:01:54.2]} 20... gxf5 {[%clk 0:01:04.6]} 21. Rad1
{[%clk 0:01:50.6]} 21... Rad8 {[%clk 0:00:48.3]} 22. Qc4 {[%clk 0:01:47.6]}
22... Qf7 {[%clk 0:00:39.2]} 23. b4 {[%clk 0:01:23.8]} 23... Ne4 {[%clk
0:00:33]} 24. f3 {[%clk 0:01:15.8]} 24... Nf6 {[%clk 0:00:17.6]} 25. Bg5 {[%clk
0:01:03.6]} 25... Nxd5 {[%clk 0:00:08.4]} 26. Bxd8 {[%clk 0:01:00.8]} 26... Ne3
{[%clk 0:00:06.3]} 27. Qxf7+ {[%clk 0:00:59.8]} 27... Kxf7 {[%clk 0:00:08.2]}
28. Rxd6 {[%clk 0:00:59.9]} 28... Nc4 {[%clk 0:00:07.1]} 29. Rd7+ {[%clk
0:00:59.2]} 29... Ke6 {[%clk 0:00:08.6]} 30. Rd1 {[%clk 0:00:57.4]} 30... Ne3
{[%clk 0:00:09.4]} 31. Rd2 {[%clk 0:00:56.6]} 31... Nc4 {[%clk 0:00:10.2]} 32.
Rd3 {[%clk 0:00:52.4]} 32... Nb2 {[%clk 0:00:10.8]} 33. Rb3 {[%clk 0:00:50.1]}
33... Nxa4 {[%clk 0:00:11.6]} 34. Bh4 {[%clk 0:00:47.3]} 34... b5 {[%clk
0:00:09.1]} 35. Rd3 {[%clk 0:00:42.4]} 35... Rc8 {[%clk 0:00:09]} 36. Rd2 {[%clk
0:00:37.3]} 36... Rc4 {[%clk 0:00:10.2]} 37. Be1 {[%clk 0:00:33.1]} 37... Rxb4
{[%clk 0:00:07.4]} 38. Rd8 {[%clk 0:00:34.1]} 38... Rb1 {[%clk 0:00:06.6]} 39.
Kf2 {[%clk 0:00:35.4]} 39... Nc5 {[%clk 0:00:06.7]} 40. Re8+ {[%clk 0:00:34.8]}
40... Kf7 {[%clk 0:00:06.9]} 41. Rxe5 {[%clk 0:00:35.5]} 41... Kf6 {[%clk
0:00:07.5]} 42. Rxc5 {[%clk 0:00:36.1]} 42... Rb2 {[%clk 0:00:09.4]} 43. Rc6+
{[%clk 0:00:35.8]} 43... Ke5 {[%clk 0:00:09.8]} 44. Bc3+ {[%clk 0:00:36.5]}
44... Kf4 {[%clk 0:00:10.1]} 45. Bxb2 {[%clk 0:00:37.1]} 1